[Event "Chile-ch Absolute 2018-19"]
[Site "Santiago"]
[Date "2019.02.20"]
[Round "1.1"]
[White "Henriquez Villagra, Cristobal"]
[Black "Gasic Merino, Franco"]
[Result "1-0"]
[ECO "B01"]
[WhiteElo "2508"]
[BlackElo "2189"]
[Annotator "RC"]
[PlyCount "89"]
[EventDate "2019.02.20"]
[EventType "tourn"]
[EventCountry "CHI"]
[SourceTitle "playchess.com"]
[Source "ChessBase"]
[SourceQuality "1"]
[TimeControl "5400+30"]

1. e4 {[%emt 0:00:00]} d5 {[%emt 0:00:00]} 2. exd5 {[%emt 0:00:00]} Nf6 {[%emt 0:00:00]} 3. Bb5+ {[%emt 0:00:00]} Bd7 {[%emt 0:00:00]} 4. Bc4 {[%emt 0:00:00]} Bg4 {[%emt 0:00:08]} 5. f3 {[%emt 0:00:00]} Bf5 {[%emt 0:00:07]} 6. g4 {[%emt 0:00:00]} Bg6 {[%emt 0:10:27]} 7. Nc3 {[%emt 0:00:20]} c6 {[%emt 0:00:32]} 8. dxc6 {[%emt 0:06:01]} Nxc6 {[%emt 0:00:02]} 9. Nge2 {[%emt 0:02:24]} e5 {[%emt 0:07:19]} 10. d3 {[%emt 0:00:44]} h5 {[%emt 0:02:26]} 11. g5 {[%emt 0:00:27]} Nd7 {[%emt 0:01:59]} 12. Be3 {[%emt 0:03:40]} Bc5 {[%emt 0:07:02]} 13. Bxc5 {[%emt 0:02:51]} Nxc5 {[%emt 0:00:02]} 14. Qd2 {[%emt 0:00:11]} O-O {[%emt 0:02:34]} 15. O-O-O {[%emt 0:02:52]} Re8 {[%emt 0:16:43]} 16. Rdf1 {[%emt 0:08:55]} Ne6 {[%emt 0:07:57]} 17. f4 {[%emt 0:05:57]} exf4 {[%emt 0:02:08]} 18. Bxe6 {[%emt 0:00:35]} Rxe6 {[%emt 0:01:14]} 19. Nxf4 {[%emt 0:00:09]} Rd6 {[%emt 0:01:02]} 20. Nxg6 {[%emt 0:02:26]} Rxg6 {[%emt 0:00:43]} 21. h4 {[%emt 0:00:46]} Nd4 {[%emt 0:02:59]} 22. Rf4 {[%emt 0:00:24]} Ne6 {[%emt 0:11:14]} 23. Rf5 {[%emt 0:00:26]} Nd4 {[%emt 0:01:56]} 24. Rf4 {[%emt 0:00:48]} Ne6 {[%emt 0:00:07]} 25. Rf2 {[%emt 0:00:09]} Rc8 {[%emt 0:02:30]} 26. Rhf1 {[%emt 0:00:14]} Rc7 {[%emt 0:00:16]} 27. Qe2 {[%emt 0:03:34]} Nd4 {[%emt 0:04:04]} 28. Qxh5 {[%emt 0:00:16]} b5 {[%emt 0:00:33]} 29. Kb1 {[%emt 0:00:41]} b4 {[%emt 0:00:41]} 30. Ne4 {[%emt 0:01:50]} Qc8 {[%emt 0:05:35]} 31. Qd1 {[%emt 0:08:56]} Rgc6 {[%emt 0:01:19]} 32. g6 {[%emt 0:28:54]} Rxg6 {[%emt 0:02:00]} 33. Ng5 {[%emt 0:00:03]} f6 {[%emt 0:02:07]} 34. Nf3 {[%emt 0:00:25]} Nb5 {[%emt 0:00:43]} 35. c4 {[%emt 0:00:57]} bxc3 {[%emt 0:03:33]} 36. Qb3+ {[%emt 0:00:08]} Kh8 {[%emt 0:00:30]} 37. Qxb5 {[%emt 0:00:27]} cxb2 {[%emt 0:02:55]} 38. Rxb2 {[%emt 0:00:38]} Qh3 {[%emt 0:02:01]} 39. Qh5+ {[%emt 0:00:46]} Rh6 {[%emt 0:00:24]} 40. Qe8+ {[%emt 0:00:05]} Kh7 {[%emt 0:00:04]} 41. Qe4+ {[%emt 0:00:06]} g6 {[%emt 0:00:37]} 42. Rc1 {[%emt 0:00:31]} Rd7 {[%emt 0:01:24]} 43. Rb8 {[%emt 0:02:06]} Qf5 {[%emt 0:00:28]} 44. Qe8 {[%emt 0:01:14]} Qxd3+ {[%emt 0:00:26]} 45. Ka1 {[%emt 0:00:04]} 1-0

[Event "Chile-ch Absolute 2018-19"]
[Site "Santiago"]
[Date "2019.02.20"]
[Round "1.3"]
[White "Vergara Jofre, Felipe"]
[Black "Lopez Silva, Hugo"]
[Result "1-0"]
[ECO "C45"]
[WhiteElo "2265"]
[BlackElo "2413"]
[Annotator "NA RC"]
[PlyCount "69"]
[EventDate "2019.02.20"]
[EventType "tourn"]
[EventCountry "CHI"]
[SourceTitle "playchess.com"]
[Source "ChessBase"]
[SourceQuality "1"]
[TimeControl "5400+30"]

1. e4 {[%emt 0:00:00]} e5 {[%emt 0:00:00]} 2. Nf3 {[%emt 0:00:00]} Nc6 {[%emt 0:00:00]} 3. d4 {[%emt 0:00:00]} exd4 {[%emt 0:00:23]} 4. Nxd4 {[%emt 0:00:00]} Bc5 {[%emt 0:09:07]} 5. Nxc6 {[%emt 0:00:00]} Qf6 {[%emt 0:02:00]} 6. Qf3 {[%emt 0:00:00]} bxc6 {[%emt 0:00:19]} 7. Nd2 {[%emt 0:00:09]} d6 {[%emt 0:03:53]} 8. Nb3 {[%emt 0:00:05]} Bb6 {[%emt 0:00:06]} 9. a4 {[%emt 0:00:04]} a5 {[%emt 0:00:04]} 10. Bd2 {[%emt 0:00:12]} Qg6 {[%emt 0:20:40]} 11. Bd3 {[%emt 0:16:32]} Ne7 {[%emt 0:02:43]} 12. O-O {[%emt 0:14:55]} Bg4 {[%emt 0:02:47]} 13. Qg3 {[%emt 0:05:20]} O-O {[%emt 0:17:11]} 14. Rae1 {[%emt 0:10:20]} Be6 {[%emt 0:08:13]} 15. Nc1 {[%emt 0:10:59]} Qxg3 {[%emt 0:16:05]} 16. hxg3 {[%emt 0:00:01]} c5 {[%emt 0:02:23]} 17. Be2 {[%emt 0:18:19]} Nc6 {[%emt 0:01:37]} 18. Nd3 {[%emt 0:00:44]} Nd4 {[%emt 0:01:54]} 19. Bd1 {[%emt 0:02:51]} Bc4 {[%emt 0:05:35]} 20. Re3 {[%emt 0:02:03]} Ba6 {[%emt 0:02:10]} 21. Rfe1 {[%emt 0:01:20]} c4 {[%emt 0:00:20]} 22. Nf4 {[%emt 0:00:06]} Ne6 {[%emt 0:00:30]} 23. Ra3 {[%emt 0:00:43]} Rab8 {[%emt 0:02:31]} 24. Nd5 {[%emt 0:08:48]} Bd4 {[%emt 0:00:01]} 25. Bxa5 {[%emt 0:01:46]} Bxb2 {[%emt 0:01:26]} 26. Ra2 {[%emt 0:01:23]} c5 {[%emt 0:00:24]} 27. c3 {[%emt 0:04:05]} Bc1 {[%emt 0:00:27]} 28. f4 {[%emt 0:00:14]} Rb1 {[%emt 0:00:36]} 29. Bc2 {[%emt 0:01:12]} Rb2 {[%emt 0:00:30]} 30. Rxb2 {[%emt 0:00:40]} Bxb2 {[%emt 0:00:01]} 31. Rb1 {[%emt 0:00:33]} Rb8 {[%emt 0:00:20]} 32. Ne7+ {[%emt 0:01:41]} Kf8 {[%emt 0:00:08]} 33. Nf5 {[%emt 0:00:02]} g5 {[%emt 0:01:34]} 34. Nxd6 {[%emt 0:00:32]} gxf4 {[%emt 0:00:30]} 35. Nb5 {[%emt 0:00:21]} 1-0

[Event "Chile-ch Absolute 2018-19"]
[Site "Santiago"]
[Date "2019.02.20"]
[Round "1.4"]
[White "Garcia Cardenas, Pablo"]
[Black "Abarca Gonzalez, Nicolas"]
[Result "1/2-1/2"]
[ECO "D35"]
[WhiteElo "2449"]
[BlackElo "2418"]
[Annotator "NA RC"]
[PlyCount "115"]
[EventDate "2019.02.20"]
[EventType "tourn"]
[EventCountry "CHI"]
[SourceTitle "playchess.com"]
[Source "ChessBase"]
[SourceQuality "1"]
[TimeControl "5400+30"]

1. d4 {[%emt 0:00:00]} Nf6 {[%emt 0:00:00]} 2. c4 {[%emt 0:00:00]} e6 {[%emt 0:00:00]} 3. Nc3 {[%emt 0:00:00]} d5 {[%emt 0:00:00]} 4. cxd5 {[%emt 0:01:40]} exd5 {[%emt 0:00:00]} 5. Bg5 {[%emt 0:00:05]} Be6 {[%emt 0:02:15]} 6. e3 {[%emt 0:04:21]} Nbd7 {[%emt 0:01:10]} 7. Bd3 {[%emt 0:00:29]} c6 {[%emt 0:00:13]} 8. Nge2 {[%emt 0:01:55]} h6 {[%emt 0:06:52]} 9. Bh4 {[%emt 0:01:06]} g5 {[%emt 0:00:12]} 10. Bg3 {[%emt 0:00:08]} Nh5 {[%emt 0:00:04]} 11. Qc2 {[%emt 0:08:54]} Qf6 {[%emt 0:03:28]} 12. O-O {[%emt 0:15:53]} Nxg3 {[%emt 0:09:46]} 13. Nxg3 {[%emt 0:00:53]} h5 {[%emt 0:00:15]} 14. e4 {[%emt 0:04:38]} dxe4 {[%emt 0:20:48]} 15. Ngxe4 {[%emt 0:03:12]} Qg7 {[%emt 0:07:32]} 16. Rfe1 {[%emt 0:12:36]} Qxd4 {[%emt 0:14:13]} 17. Nxg5 {[%emt 0:01:51]} O-O-O {[%emt 0:02:46]} 18. Rxe6 {[%emt 0:11:36]} fxe6 {[%emt 0:14:40]} 19. Nxe6 {[%emt 0:00:09]} Qe5 {[%emt 0:00:27]} 20. Nxd8 {[%emt 0:00:20]} Kxd8 {[%emt 0:00:15]} 21. Rd1 {[%emt 0:07:37]} Nf6 {[%emt 0:01:46]} 22. Qb3 {[%emt 0:04:44]} Bd6 {[%emt 0:01:56]} 23. g3 {[%emt 0:00:15]} Kc7 {[%emt 0:00:16]} 24. Qf7+ {[%emt 0:04:31]} Kb8 {[%emt 0:00:42]} 25. Qg6 {[%emt 0:02:10]} Rf8 {[%emt 0:03:18]} 26. Qf5 {[%emt 0:03:52]} Qe7 {[%emt 0:01:30]} 27. Ne4 {[%emt 0:00:35]} Ng4 {[%emt 0:01:17]} 28. Qxh5 {[%emt 0:01:05]} Nxf2 {[%emt 0:01:12]} 29. Nxf2 {[%emt 0:01:41]} Bc5 {[%emt 0:00:03]} 30. Bf5 {[%emt 0:02:23]} Qe5 {[%emt 0:00:06]} 31. g4 {[%emt 0:00:35]} Rh8 {[%emt 0:00:18]} 32. Bh7 {[%emt 0:00:52]} Qxh5 {[%emt 0:00:14]} 33. gxh5 {[%emt 0:00:05]} Rxh7 {[%emt 0:00:02]} 34. Kg2 {[%emt 0:00:42]} Rxh5 {[%emt 0:02:52]} 35. Ne4 {[%emt 0:00:13]} Be7 {[%emt 0:01:01]} 36. Rd7 {[%emt 0:00:17]} Re5 {[%emt 0:00:03]} 37. Kf3 {[%emt 0:00:02]} Kc8 {[%emt 0:00:02]} 38. Rd2 {[%emt 0:00:15]} Kc7 {[%emt 0:00:17]} 39. Ng3 {[%emt 0:01:21]} Bf6 {[%emt 0:00:33]} 40. b3 {[%emt 0:01:05]} a5 {[%emt 0:01:49]} 41. Kg4 {[%emt 0:01:05]} Rg5+ {[%emt 0:01:04]} 42. Kf4 {[%emt 0:00:01]} Rb5 {[%emt 0:00:13]} 43. Ne4 {[%emt 0:01:18]} Be7 {[%emt 0:00:08]} 44. Kg4 {[%emt 0:00:41]} a4 {[%emt 0:00:15]} 45. bxa4 {[%emt 0:00:04]} Rb1 {[%emt 0:00:28]} 46. Rg2 {[%emt 0:02:06]} Rb4 {[%emt 0:01:08]} 47. Re2 {[%emt 0:00:39]} Kd7 {[%emt 0:00:05]} 48. h4 {[%emt 0:00:23]} Rxa4 {[%emt 0:00:12]} 49. h5 {[%emt 0:00:23]} Ke6 {[%emt 0:00:00]} 50. h6 {[%emt 0:00:20]} Kf7 {[%emt 0:01:03]} 51. h7 {[%emt 0:01:02]} Kg7 {[%emt 0:00:33]} 52. Kf5 {[%emt 0:00:05]} Kxh7 {[%emt 0:00:13]} 53. Nf6+ {[%emt 0:00:18]} Bxf6 {[%emt 0:00:07]} 54. Kxf6 {[%emt 0:00:01]} Rf4+ {[%emt 0:02:28]} 55. Ke5 {[%emt 0:01:00]} Rf7 {[%emt 0:00:13]} 56. Kd6 {[%emt 0:00:03]} Kg7 {[%emt 0:01:18]} 57. a4 {[%emt 0:00:10]} Rf4 {[%emt 0:00:20]} 58. Re7+ {[%emt 0:00:07]} 1/2-1/2

[Event "Chile-ch Absolute 2018-19"]
[Site "Santiago"]
[Date "2019.02.20"]
[Round "1.5"]
[White "Olivares Olivares, Claudio"]
[Black "Cuevas Araya, Walter"]
[Result "1-0"]
[ECO "C82"]
[WhiteElo "2387"]
[BlackElo "2187"]
[Annotator "NA RC"]
[PlyCount "82"]
[EventDate "2019.02.20"]
[EventType "tourn"]
[EventCountry "CHI"]
[SourceTitle "playchess.com"]
[Source "ChessBase"]
[SourceQuality "1"]
[TimeControl "5400+30"]

1. e4 {[%emt 0:00:00]} e5 {[%emt 0:00:00]} 2. Nf3 {[%emt 0:00:00]} Nc6 {[%emt 0:00:27]} 3. Bb5 {[%emt 0:00:07]} a6 {[%emt 0:00:12]} 4. Ba4 {[%emt 0:00:06]} Nf6 {[%emt 0:00:20]} 5. O-O {[%emt 0:00:12]} Nxe4 {[%emt 0:01:44]} 6. d4 {[%emt 0:01:56]} b5 {[%emt 0:00:07]} 7. Bb3 {[%emt 0:00:10]} d5 {[%emt 0:00:07]} 8. dxe5 {[%emt 0:00:19]} Be6 {[%emt 0:00:20]} 9. c3 {[%emt 0:00:44]} Bc5 {[%emt 0:01:05]} 10. Nbd2 {[%emt 0:00:11]} O-O {[%emt 0:00:58]} 11. Bc2 {[%emt 0:00:19]} Nxf2 {[%emt 0:06:31]} 12. Rxf2 {[%emt 0:00:09]} f6 {[%emt 0:00:06]} 13. exf6 {[%emt 0:00:10]} Bxf2+ {[%emt 0:01:22]} 14. Kxf2 {[%emt 0:00:09]} Qxf6 {[%emt 0:00:03]} 15. Nf1 {[%emt 0:07:56]} Ne5 {[%emt 0:05:26]} 16. Be3 {[%emt 0:03:08]} Rae8 {[%emt 0:10:40]} 17. Bc5 {[%emt 0:28:31]} Qh4+ {[%emt 0:45:26]} 18. Kg1 {[%emt 0:00:18]} Rxf3 {[%emt 0:00:08]} 19. gxf3 {[%emt 0:02:21]} Qh5 {[%emt 0:01:49]} 20. Nd2 {[%emt 0:06:04]} Bh3 {[%emt 0:05:29]} 21. Kh1 {[%emt 0:04:44]} Nc4 {[%emt 0:07:56]} 22. Bb3 {[%emt 0:09:12]} Nxd2 {[%emt 0:02:04]} 23. Qxd2 {[%emt 0:00:06]} Qxf3+ {[%emt 0:00:56]} 24. Kg1 {[%emt 0:00:09]} Qg4+ {[%emt 0:04:17]} 25. Kh1 {[%emt 0:00:09]} Qe4+ {[%emt 0:00:48]} 26. Kg1 {[%emt 0:00:12]} Qg4+ {[%emt 0:03:05]} 27. Kh1 {[%emt 0:00:09]} Qe4+ {[%emt 0:00:02]} 28. Kg1 {[%emt 0:00:08]} Qg6+ {[%emt 0:01:39]} 29. Kh1 {[%emt 0:00:10]} Qe4+ {[%emt 0:00:31]} 30. Kg1 {[%emt 0:00:08]} Re5 {[%emt 0:00:40]} 31. Be3 {[%emt 0:30:15]} Qg4+ {[%emt 0:00:21]} 32. Kh1 {[%emt 0:00:21]} Qf3+ {[%emt 0:00:21]} 33. Kg1 {[%emt 0:00:08]} Qg4+ {[%emt 0:00:33]} 34. Kh1 {[%emt 0:00:09]} Qe4+ {[%emt 0:00:09]} 35. Kg1 {[%emt 0:00:05]} Qg6+ {[%emt 0:01:01]} 36. Kh1 {[%emt 0:00:11]} Qe4+ {[%emt 0:00:29]} 37. Kg1 {[%emt 0:00:06]} Qg4+ {[%emt 0:00:30]} 38. Kh1 {[%emt 0:00:08]} c6 {[%emt 0:00:50]} 39. Re1 {[%emt 0:01:03]} Qf3+ {[%emt 0:00:06]} 40. Kg1 {[%emt 0:00:01]} Rxe3 {[%emt 0:00:05]} 41. Ra1 Qg4+ {[%emt 0:00:03]} 1-0

[Event "Chile-ch Absolute 2018-19"]
[Site "Santiago"]
[Date "2019.02.20"]
[Round "1.6"]
[White "Tapia Fuentes, Jaime"]
[Black "Aguirre Contreras, Cristian"]
[Result "1/2-1/2"]
[ECO "B15"]
[WhiteElo "2259"]
[BlackElo "2252"]
[Annotator "NA RC"]
[PlyCount "96"]
[EventDate "2019.02.20"]
[EventType "tourn"]
[EventCountry "CHI"]
[SourceTitle "playchess.com"]
[Source "ChessBase"]
[SourceQuality "1"]
[TimeControl "5400+30"]

1. e4 {[%emt 0:00:00]} g6 {[%emt 0:00:11]} 2. d4 {[%emt 0:00:22]} Bg7 {[%emt 0:00:07]} 3. Nc3 {[%emt 0:01:14]} c6 {[%emt 0:00:33]} 4. Nf3 {[%emt 0:04:01]} d5 {[%emt 0:00:21]} 5. e5 {[%emt 0:00:12]} f6 {[%emt 0:09:24]} 6. Bd3 {[%emt 0:05:02]} Nh6 {[%emt 0:04:42]} 7. O-O {[%emt 0:07:25]} O-O {[%emt 0:01:40]} 8. h3 {[%emt 0:02:29]} Nf7 {[%emt 0:06:37]} 9. Re1 {[%emt 0:03:43]} fxe5 {[%emt 0:06:18]} 10. dxe5 {[%emt 0:00:22]} e6 {[%emt 0:00:39]} 11. Bf4 {[%emt 0:08:18]} b6 {[%emt 0:07:13]} 12. Qe2 {[%emt 0:09:53]} c5 {[%emt 0:03:23]} 13. Rad1 {[%emt 0:03:49]} Bb7 {[%emt 0:02:01]} 14. Nb1 {[%emt 0:11:29]} Qc7 {[%emt 0:09:55]} 15. c3 {[%emt 0:02:23]} a6 {[%emt 0:06:58]} 16. Nbd2 {[%emt 0:00:42]} Nc6 {[%emt 0:01:21]} 17. Nf1 {[%emt 0:01:26]} b5 {[%emt 0:02:39]} 18. Ng3 {[%emt 0:03:43]} Rad8 {[%emt 0:05:06]} 19. h4 {[%emt 0:02:34]} d4 {[%emt 0:03:12]} 20. Be4 {[%emt 0:15:01]} dxc3 {[%emt 0:00:59]} 21. bxc3 {[%emt 0:01:11]} Rxd1 {[%emt 0:05:01]} 22. Rxd1 {[%emt 0:00:04]} Rd8 {[%emt 0:00:26]} 23. Rxd8+ {[%emt 0:00:16]} Qxd8 {[%emt 0:00:46]} 24. Qe3 {[%emt 0:02:32]} Qb6 {[%emt 0:03:39]} 25. h5 {[%emt 0:01:57]} Ne7 {[%emt 0:05:16]} 26. Bxb7 {[%emt 0:00:50]} Qxb7 {[%emt 0:00:06]} 27. Qxc5 {[%emt 0:01:13]} Nd5 {[%emt 0:00:07]} 28. hxg6 {[%emt 0:02:09]} hxg6 {[%emt 0:00:34]} 29. Bd2 {[%emt 0:01:34]} Nxe5 {[%emt 0:00:18]} 30. Nxe5 {[%emt 0:01:05]} Bxe5 {[%emt 0:00:02]} 31. Ne4 {[%emt 0:00:31]} Qc7 {[%emt 0:02:33]} 32. Qxc7 {[%emt 0:00:54]} Bxc7 {[%emt 0:00:51]} 33. Nc5 {[%emt 0:02:24]} Be5 {[%emt 0:00:25]} 34. Nxa6 {[%emt 0:01:02]} Bxc3 {[%emt 0:00:20]} 35. Bxc3 {[%emt 0:00:54]} Nxc3 {[%emt 0:00:03]} 36. Nb4 {[%emt 0:01:36]} Kf7 {[%emt 0:00:07]} 37. Kf1 {[%emt 0:00:05]} Kf6 {[%emt 0:00:13]} 38. Ke1 {[%emt 0:00:19]} Ke5 {[%emt 0:00:34]} 39. Kd2 {[%emt 0:00:13]} Nd5 {[%emt 0:06:08]} 40. Nc6+ {[%emt 0:01:04]} Ke4 {[%emt 0:00:17]} 41. f3+ {[%emt 0:02:25]} Kf4 {[%emt 0:00:53]} 42. Nd4 {[%emt 0:00:07]} b4 {[%emt 0:01:38]} 43. Nxe6+ {[%emt 0:00:27]} Kg3 {[%emt 0:00:20]} 44. Nf8 {[%emt 0:00:23]} Kxg2 {[%emt 0:00:50]} 45. Nxg6 {[%emt 0:00:15]} Kxf3 {[%emt 0:00:08]} 46. Ne5+ {[%emt 0:00:17]} Ke4 {[%emt 0:00:07]} 47. Nc6 {[%emt 0:00:14]} Nc3 {[%emt 0:00:13]} 48. Nxb4 {[%emt 0:00:07]} Nxa2 {[%emt 0:00:05]} 1/2-1/2

[Event "Chile-ch Absolute 2018-19"]
[Site "Santiago"]
[Date "2019.02.21"]
[Round "2.1"]
[White "Gasic Merino, Franco"]
[Black "Aguirre Contreras, Cristian"]
[Result "1-0"]
[ECO "E05"]
[WhiteElo "2189"]
[BlackElo "2252"]
[Annotator "NA"]
[PlyCount "71"]
[EventDate "2019.02.20"]
[EventType "tourn"]
[EventCountry "CHI"]
[SourceTitle "playchess.com"]
[Source "ChessBase"]
[SourceQuality "1"]
[TimeControl "5400+30"]

1. d4 {[%emt 0:00:00]} Nf6 {[%emt 0:00:00]} 2. g3 {[%emt 0:00:00]} e6 {[%emt 0:00:00]} 3. c4 {[%emt 0:00:00]} d5 {[%emt 0:00:00]} 4. Nf3 {[%emt 0:00:03]} Be7 {[%emt 0:00:06]} 5. Bg2 {[%emt 0:00:11]} O-O {[%emt 0:00:09]} 6. O-O {[%emt 0:00:08]} dxc4 {[%emt 0:00:06]} 7. Qc2 {[%emt 0:00:08]} b6 {[%emt 0:00:57]} 8. Bg5 {[%emt 0:04:10]} Bb7 {[%emt 0:02:40]} 9. Bxf6 {[%emt 0:02:09]} Bxf6 {[%emt 0:02:39]} 10. Ng5 {[%emt 0:00:22]} Bxg5 {[%emt 0:04:18]} 11. Bxb7 {[%emt 0:00:04]} Nd7 {[%emt 0:05:00]} 12. Bxa8 {[%emt 0:00:09]} Qxa8 {[%emt 0:00:05]} 13. Qxc4 {[%emt 0:01:05]} h5 {[%emt 0:00:53]} 14. Qb5 {[%emt 0:04:02]} Qd8 {[%emt 0:00:53]} 15. Nc3 {[%emt 0:01:41]} h4 {[%emt 0:00:19]} 16. Ne4 {[%emt 0:10:18]} Bh6 {[%emt 0:01:48]} 17. Rad1 {[%emt 0:09:07]} f5 {[%emt 0:02:00]} 18. Nc3 {[%emt 0:03:34]} Rf6 {[%emt 0:10:47]} 19. e4 {[%emt 0:13:24]} f4 {[%emt 0:04:03]} 20. g4 {[%emt 0:10:24]} f3 {[%emt 0:02:08]} 21. h3 {[%emt 0:00:56]} Rf4 {[%emt 0:09:16]} 22. Kh1 {[%emt 0:02:16]} a6 {[%emt 0:03:37]} 23. Qc6 {[%emt 0:01:13]} Rf6 {[%emt 0:07:14]} 24. e5 {[%emt 0:01:11]} Nb8 {[%emt 0:00:02]} 25. Qe4 {[%emt 0:03:11]} Rf4 {[%emt 0:00:12]} 26. Qg6 {[%emt 0:00:16]} Qe7 {[%emt 0:05:02]} 27. d5 {[%emt 0:00:34]} Nd7 {[%emt 0:00:57]} 28. Qxe6+ {[%emt 0:00:58]} Rf7 {[%emt 0:02:44]} 29. Qxe7 {[%emt 0:05:16]} Rxe7 {[%emt 0:00:03]} 30. e6 {[%emt 0:01:03]} Ne5 {[%emt 0:01:22]} 31. b3 {[%emt 0:02:39]} b5 {[%emt 0:00:41]} 32. Rfe1 {[%emt 0:00:19]} Ng6 {[%emt 0:00:05]} 33. Rd3 {[%emt 0:02:35]} Nf4 {[%emt 0:00:08]} 34. Rxf3 {[%emt 0:00:34]} b4 {[%emt 0:00:09]} 35. Ne4 {[%emt 0:00:14]} g5 {[%emt 0:00:44]} 36. Rd1 {[%emt 0:01:15]} 1-0

[Event "Chile-ch Absolute 2018-19"]
[Site "Santiago"]
[Date "2019.02.21"]
[Round "2.2"]
[White "Cuevas Araya, Walter"]
[Black "Tapia Fuentes, Jaime"]
[Result "1/2-1/2"]
[ECO "D79"]
[WhiteElo "2187"]
[BlackElo "2259"]
[Annotator "NA"]
[PlyCount "157"]
[EventDate "2019.02.20"]
[EventType "tourn"]
[EventCountry "CHI"]
[SourceTitle "playchess.com"]
[Source "ChessBase"]
[SourceQuality "1"]
[TimeControl "5400+30"]

1. Nf3 {[%emt 0:00:00]} c5 {[%emt 0:00:05]} 2. g3 {[%emt 0:00:19]} Nf6 {[%emt 0:00:37]} 3. Bg2 {[%emt 0:00:11]} g6 {[%emt 0:00:21]} 4. c3 {[%emt 0:05:25]} Bg7 {[%emt 0:02:06]} 5. d4 {[%emt 0:00:13]} cxd4 {[%emt 0:00:53]} 6. cxd4 {[%emt 0:00:15]} d5 {[%emt 0:00:03]} 7. O-O {[%emt 0:00:13]} O-O {[%emt 0:01:39]} 8. Nc3 {[%emt 0:01:12]} Nc6 {[%emt 0:07:08]} 9. Ne5 {[%emt 0:01:43]} e6 {[%emt 0:01:04]} 10. f4 {[%emt 0:06:02]} Nd7 {[%emt 0:01:37]} 11. e3 {[%emt 0:04:24]} Nb6 {[%emt 0:00:43]} 12. b3 {[%emt 0:00:47]} Bd7 {[%emt 0:00:13]} 13. Ba3 {[%emt 0:01:11]} Re8 {[%emt 0:00:30]} 14. Rc1 {[%emt 0:04:44]} Ne7 {[%emt 0:10:53]} 15. Rf2 {[%emt 0:13:40]} Nf5 {[%emt 0:06:04]} 16. Qe1 {[%emt 0:00:00]} f6 {[%emt 0:01:14]} 17. Nf3 {[%emt 0:01:12]} Bc6 {[%emt 0:01:44]} 18. Re2 {[%emt 0:08:31]} Nd6 {[%emt 0:09:22]} 19. Qd2 {[%emt 0:08:30]} a5 {[%emt 0:01:12]} 20. Bxd6 {[%emt 0:09:24]} Qxd6 {[%emt 0:00:03]} 21. e4 {[%emt 0:00:05]} dxe4 {[%emt 0:08:25]} 22. Nxe4 {[%emt 0:00:35]} Qb4 {[%emt 0:09:05]} 23. Nc5 {[%emt 0:06:33]} Bd5 {[%emt 0:02:28]} 24. Rce1 {[%emt 0:06:25]} Kf7 {[%emt 0:04:41]} 25. Qd3 {[%emt 0:05:57]} Bf8 {[%emt 0:02:23]} 26. Qe3 {[%emt 0:02:49]} Rac8 {[%emt 0:01:50]} 27. Nd3 {[%emt 0:00:38]} Qd6 {[%emt 0:00:54]} 28. Nf2 {[%emt 0:01:27]} a4 {[%emt 0:02:46]} 29. Ne4 {[%emt 0:00:41]} Qb4 {[%emt 0:00:42]} 30. Nfd2 {[%emt 0:05:04]} Nd7 {[%emt 0:11:00]} 31. g4 {[%emt 0:00:21]} Bg7 {[%emt 0:00:56]} 32. a3 {[%emt 0:02:57]} Qxa3 {[%emt 0:02:33]} 33. bxa4 {[%emt 0:00:58]} Qxe3+ {[%emt 0:01:44]} 34. Rxe3 {[%emt 0:00:01]} Bf8 {[%emt 0:02:00]} 35. Rb1 {[%emt 0:00:33]} Rc2 {[%emt 0:00:46]} 36. Rc3 {[%emt 0:00:48]} Rc8 {[%emt 0:00:55]} 37. Rxc8 {[%emt 0:00:21]} Rxc8 {[%emt 0:00:01]} 38. Nf2 {[%emt 0:00:50]} Bxg2 {[%emt 0:01:11]} 39. Kxg2 {[%emt 0:00:01]} b6 {[%emt 0:00:27]} 40. Nf3 {[%emt 0:01:42]} Bd6 {[%emt 0:01:46]} 41. g5 {[%emt 0:01:05]} Bxf4 {[%emt 0:01:58]} 42. gxf6 {[%emt 0:00:02]} Kxf6 {[%emt 0:00:49]} 43. Ng4+ {[%emt 0:00:58]} Ke7 {[%emt 0:00:21]} 44. Nge5 {[%emt 0:01:40]} Rc2+ {[%emt 0:00:36]} 45. Kf1 {[%emt 0:00:34]} Be3 {[%emt 0:02:35]} 46. Ng4 {[%emt 0:00:50]} Rc1+ {[%emt 0:00:44]} 47. Rxc1 {[%emt 0:00:06]} Bxc1 {[%emt 0:00:01]} 48. Ke2 {[%emt 0:00:16]} Kd6 {[%emt 0:00:23]} 49. Kd3 {[%emt 0:00:13]} Kd5 {[%emt 0:01:04]} 50. h3 {[%emt 0:00:11]} Bf4 {[%emt 0:00:24]} 51. Nf2 {[%emt 0:01:06]} Nf6 {[%emt 0:00:47]} 52. Nd1 {[%emt 0:00:38]} Ne4 {[%emt 0:00:29]} 53. Ne1 {[%emt 0:00:12]} Ng5 {[%emt 0:01:38]} 54. Nc3+ {[%emt 0:00:53]} Kc6 {[%emt 0:00:07]} 55. h4 {[%emt 0:01:00]} Nf7 {[%emt 0:00:05]} 56. Ng2 {[%emt 0:00:27]} Bd6 {[%emt 0:00:40]} 57. Ne4 {[%emt 0:00:26]} Be7 {[%emt 0:00:15]} 58. Nf4 {[%emt 0:00:29]} e5 {[%emt 0:01:00]} 59. d5+ {[%emt 0:00:44]} Kd7 {[%emt 0:00:07]} 60. Ng2 {[%emt 0:00:18]} Nh6 {[%emt 0:00:58]} 61. Kc4 {[%emt 0:00:39]} Nf5 {[%emt 0:00:20]} 62. Kb5 {[%emt 0:00:09]} Kc7 {[%emt 0:00:12]} 63. Ng5 {[%emt 0:00:50]} Nd4+ {[%emt 0:00:30]} 64. Kc4 {[%emt 0:00:08]} Bxg5 {[%emt 0:00:28]} 65. hxg5 {[%emt 0:00:04]} Nf3 {[%emt 0:00:10]} 66. Kb5 {[%emt 0:00:17]} Nd4+ {[%emt 0:00:34]} 67. Kc4 {[%emt 0:00:03]} Nf3 {[%emt 0:00:03]} 68. Kb5 {[%emt 0:00:01]} Nxg5 {[%emt 0:00:15]} 69. d6+ {[%emt 0:00:16]} Kxd6 {[%emt 0:00:24]} 70. Kxb6 {[%emt 0:00:01]} Ne6 {[%emt 0:00:23]} 71. Ne3 {[%emt 0:01:04]} Nc5 {[%emt 0:01:32]} 72. a5 {[%emt 0:00:06]} h5 {[%emt 0:00:29]} 73. Nc4+ {[%emt 0:00:26]} Kd5 {[%emt 0:00:06]} 74. Ne3+ {[%emt 0:00:21]} Kd4 {[%emt 0:00:11]} 75. Nc2+ {[%emt 0:00:08]} Kd5 {[%emt 0:01:11]} 76. Ne3+ {[%emt 0:00:11]} Kd6 {[%emt 0:00:16]} 77. Nc4+ {[%emt 0:00:04]} Kd5 {[%emt 0:00:01]} 78. Ne3+ {[%emt 0:00:07]} Kd4 {[%emt 0:00:07]} 79. Nc2+ {[%emt 0:00:06]} 1/2-1/2